Cogmind - Beta 16 @@@ ROGUE MODE // 2025.11.17 @ 23:12:56 Player: Ladmageddon Result: Destroyed by P-60 Hacker with Shock Rifle Performance ------------- Evolutions (0) 0 Regions Visited (3) 600 Robots Destroyed (9) 45 Value Destroyed (252) 252 Prototype IDs (0) 0 Alien Tech Used (0) 0 Bonus (0) 0 TOTAL SCORE: 897 Bonus ------- None Cogmind --------- Core Integrity 0/250 Matter 300/300 Energy 99/100 System Corruption 8% Temperature Cool (0) Movement Rolling (110) Ox2 Location -7/Recycling Parts ------- > --- POWER (1) -------- (None) > --- PROPULSION (2) --- Wheel > --- UTILITY (2) ------ Heat Sink Large Storage Unit > --- WEAPON (2) ------- Minigun > --- INVENTORY (15) --- Light Ion Engine Large Storage Unit Subdweller Optics Power Shielding Medium Laser Datajack Scrap Shield Fragment (49) Peak State ------------ > --- POWER ------------ Light Nuclear Core > --- PROPULSION ------- Light Treads Wheel > --- UTILITY ---------- Heat Sink Large Storage Unit > --- WEAPON ----------- Small Laser Particle Gun > --- INVENTORY -------- Light Ion Engine Compact Wheel Large Storage Unit Subdweller Optics Power Shielding Medium Laser Datajack Scrap Shield Fragment [Rating: 11] Favorites ----------- Power Ion Engine Engine Ion Engine Power Core Light Nuclear Core Propulsion Light Treads Treads Light Treads Leg Aluminum Leg Wheel Wheel Utility Large Storage Unit Device Heat Sink Storage Large Storage Unit Weapon Light Assault Rifle Energy Gun Particle Gun Ballistic Gun Light Assault Rifle Build | -11 -10 -10 -7 ------- Run | Yrd Mat Sub Rec Slots Evolved . | . . . . Power . | . . . . Propulsion . | . . . . Utility . | . . . . Weapon . | . . . . Parts Attached 15 | 7 3 4 1 Power 2 | 1 . 1 . Engine 1 | 1 . . . Core 1 | . . 1 . Reactor . | . . . . Propulsion 5 | 3 . 2 . Treads 2 | 2 . . . Leg 1 | 1 . . . Wheel 2 | . . 2 . Hover . | . . . . Flight . | . . . . Utility 3 | 1 2 . . Device 1 | . 1 . . Storage 2 | 1 1 . . Processor . | . . . . Hackware . | . . . . Protection . | . . . . Artifact . | . . . . Weapon 5 | 2 1 1 1 Energy Gun 2 | . 1 1 . Energy Cannon . | . . . . Ballistic Gun 3 | 2 . . 1 Ballistic Cannon . | . . . . Launcher . | . . . . Special Weapon . | . . . . Impact Weapon . | . . . . Slashing Weapon . | . . . . Piercing Weapon . | . . . . Special Melee Weapon . | . . . . Unidentified Prototypes . | . . . . Parts Lost 9 | . 1 4 4 Power 2 | . . 1 1 Propulsion 3 | . . 2 1 Utility . | . . . . Weapon 4 | . 1 1 2 Highest Loss Streak 3 | . 1 3 2 To Critical Strikes . | . . . . Average Backups 6 | 3 6 8 6 Power 1 | . 1 1 1 Propulsion 1 | 2 2 1 . Utility 1 | . 1 2 3 Weapon 1 | . 1 1 1 Tool/Special . | . . . . Unused Backups 6 | . . . 6 Power 1 | . . . 1 Propulsion . | . . . . Utility 3 | . . . 3 Weapon 1 | . . . 1 Tool/Special 1 | . . . 1 Average Slot Usage (%) 93 | . 90 95 92 Engine 9 | . 14 10 . Core 3 | . . 1 10 Treads 17 | . 28 18 . Wheel 9 | . . 6 28 Device 11 | . 5 14 14 Storage 14 | . 14 14 14 Energy Gun 14 | . 5 15 24 Ballistic Gun 12 | . 21 11 . Peak Build Rating 11 | 6 9 11 10 Average Rating 7 | 3 7 8 8 On Entrance 6 | . 6 9 10 Avg Prop Armor Cover (%) 13 | . . 13 . Naked Turns . | . . . . Heaviest Build 30 | 13 30 30 30 Greatest Support 40 | 40 40 40 26 Greatest Overweight (x) 2 | 1 . 2 2 Average Overweight (x) . | . . . . Largest Inventory Capacity 15 | 8 15 15 15 Average Capacity 13 | 6 13 15 15 Most Carried 11 | 5 9 11 8 Average Carried 7 | 4 6 9 7 Final Capacity 15 | 8 15 15 15 Final Carried 9 | 4 9 7 7 Class Distribution -------------------- 77% | Mutant 22% | Scavenger-Mutant Dominant Class ---------------- Mutant | -10/Materials Mutant | -10/Subcaves Scavenger-Mutant | -7/Recycling Resources | -11 -10 -10 -7 ----------- Run | Yrd Mat Sub Rec Matter Collected 438 | 197 196 45 . Remotely . | . . . . Salvage Created 287 | . 185 102 . Parts 17 | . 10 7 . Haulers Intercepted . | . . . . Recyclers Shooed . | . . . . Parts Field Recycled . | . . . . Retrieved Matter . | . . . . Parts Self-Destructed 6 | . . 6 . Prevented . | . . . . Parts Restored . | . . . . Kills | -11 -10 -10 -7 ------- Run | Yrd Mat Sub Rec Combat Hostiles Destroyed 9 | . 4 5 . Guns 9 | . 4 5 . Classes Destroyed 3 | . 1 2 . Swarmer 4 | . . 4 . Grunt 4 | . 4 . . Subdweller 1 | . . 1 . Best Kill Streak 4 | . 2 4 . Combat Bots Only 4 | . 2 4 . Max Kills in Single Turn 2 | . 1 2 . Gunslinging 1 | . . 1 . Exploded . | . . . . Melee . | . . . . Uniques/NPCs Destroyed . | . . . . Combat | -11 -10 -10 -7 -------- Run | Yrd Mat Sub Rec Hostile Shots Fired 195 | . 60 126 9 Missed 77 | . 17 59 1 Hits 118 | . 43 67 8 Projectile 118 | . 43 67 8 Critical Strikes 2 | . . . 2 Damage Taken 1204 | . 509 564 131 Core 264 | . 139 79 46 Absorbed by Shields . | . . . . Core Remaining (%) 100 | 100 . . . Volleys Fired 74 | . 26 32 16 Largest 2 | . 2 2 2 Hottest 105 | . 40 105 105 Shots Fired 116 | . 50 48 18 Gun 116 | . 50 48 18 Cannon . | . . . . Launcher . | . . . . Special . | . . . . Kinetic 72 | . 50 22 . Thermal 44 | . . 26 18 Explosive . | . . . . Electromagnetic . | . . . . Robot Hit Streak 10 | . 10 5 . Robot Miss Streak 3 | . 2 3 . Penetration Max . | . . . . Secondary Targets 3 | . 1 2 . Max Gunslinging Chain 1 | . 1 1 . Shots Hit Robots 63 | . 36 27 . Core Hits 20 | . 10 10 . Critical Kills . | . . . . Critical Parts Destroyed . | . . . . Critical Strikes . | . . . . Melee Attacks . | . . . . Impact . | . . . . Slashing . | . . . . Piercing . | . . . . Sneak Attacks . | . . . . Combat Hostiles . | . . . . Follow-up Attacks . | . . . . Damage Inflicted 747 | . 369 354 24 Guns 723 | . 369 354 . Cannons . | . . . . Explosions . | . . . . Melee . | . . . . Ramming 24 | . . . 24 Kinetic 477 | . 369 108 . Thermal 246 | . . 246 . Explosive . | . . . . Electromagnetic . | . . . . Impact . | . . . . Slashing . | . . . . Piercing . | . . . . Highest Corruption 8 | . 2 2 8 Average Corruption 2 | . 2 2 3 Corruption Purged . | . . . . Corruption Blocked . | . . . . Effects 8 | . 1 2 5 Message Errors 3 | . 1 1 1 Matter Fused 1 | . . . 1 Heat Flow Errors 1 | . . . 1 Data Loss (minor) 3 | . . 1 2 Overload Shots . | . . . . Overflow Damage . | . . . . Projectiles . | . . . . Explosions . | . . . . Melee . | . . . . Knockbacks . | . . . . Impact . | . . . . Kinetic . | . . . . Secondary . | . . . . Self-Inflicted Damage 11 | . . . 11 Shots . | . . . . Rammed 2 | . . . 2 Targets Rammed 2 | . . . 2 Kicked . | . . . . Crushed . | . . . . Highest Temperature 224 | . 21 5 224 Average Temperature 23 | . 9 4 71 Received Heat Transfer 558 | . 288 270 . Siege Activations . | . . . . Martial Activations . | . . . . Shielding Activations . | . . . . Robots Disrupted . | . . . . Combat Hostiles . | . . . . Robots Corrupted . | . . . . Combat Hostiles . | . . . . Parts Fried . | . . . . Impact Corruptions . | . . . . Robots Melted . | . . . . Combat Hostiles . | . . . . Parts Melted . | . . . . Heat Transferred 557 | . . 557 . Parts Sabotaged . | . . . . Parts Stolen . | . . . . Parts Stripped . | . . . . Power Chain Reactions . | . . . . Alert | -11 -10 -10 -7 ------- Run | Yrd Mat Sub Rec Maximum Alert Level . | . . . . Low Security (%) 100 | 100 100 . 100 Level 1 . | . . . . Level 2 . | . . . . Level 3 . | . . . . Level 4 . | . . . . Level 5 . | . . . . High Security . | . . . . Max Security . | . . . . Peak Influence 60 | . 60 . 45 Initial 45 | . . . 45 Average 16 | . 22 . 13 Influence Increases 272 | . 102 155 15 Destroy 0b10 Robot/C 160 | . 80 80 . Destroy Leader 20 | . 20 . . Successful Hack 2 | . 2 . . Disable Machine 15 | . . . 15 Lose Combat Pursuer 75 | . . 75 . Influence Decreases 272 | . 102 60 110 Entered New Map 50 | . . . 50 Time Decay 177 | . 92 30 55 Lost Part 45 | . 10 30 5 Squads Dispatched . | . . . . Investigation . | . . . . Extermination . | . . . . Reinforcement . | . . . . Assault . | . . . . Garrison . | . . . . Intercept . | . . . . Searches Triggered . | . . . . Construction Impeded . | . . . . Haulers Reinforced . | . . . . Active Scanning Responses . | . . . . Cargo Convoy Interrupts . | . . . . Stealth | -11 -10 -10 -7 --------- Run | Yrd Mat Sub Rec Distress Signals . | . . . . Communications Jammed . | . . . . Distress Signals . | . . . . Times Spotted 17 | . 5 9 3 Peak Tracking Total 4 | . 4 4 3 Tactical Retreats 2 | . . 2 . Traps | -11 -10 -10 -7 ------- Run | Yrd Mat Sub Rec Traps Triggered 1 | . 1 . . Indirectly . | . . . . Trap Hack Attempts . | . . . . Triggered . | . . . . Disarmed . | . . . . Reprogrammed . | . . . . Reused . | . . . . Traps Extracted . | . . . . Installed . | . . . . Triggered . | . . . . Machines | -11 -10 -10 -7 ---------- Run | Yrd Mat Sub Rec Machines Disabled 2 | . . 1 1 Max in Single Turn 1 | . . 1 1 Machines Repaired . | . . . . Machines Dismantled . | . . . . Machines Sabotaged . | . . . . Overloaded Fab Kills . | . . . . Hacking | -11 -10 -10 -7 --------- Run | Yrd Mat Sub Rec Machines Accessed 1 | . 1 . . Terminals 1 | . 1 . . Fabricators . | . . . . Repair Stations . | . . . . Recycling Units . | . . . . Scanalyzers . | . . . . Garrison Access . | . . . . Total Hacks 5 | . 5 . . Successful 4 | . 4 . . Failed 1 | . 1 . . Catastrophic . | . . . . Database Lockouts . | . . . . Manual . | . . . . Terminals 5 | . 5 . . Fabricators . | . . . . Repair Stations . | . . . . Recycling Units . | . . . . Scanalyzers . | . . . . Garrison Access . | . . . . Terminal Hacks 4 | . 4 . . Record 3 | . 3 . . Alert Level 1 | . 1 . . Fabricator Hacks . | . . . . Repair Station Hacks . | . . . . Recycling Unit Hacks . | . . . . Scanalyzer . | . . . . Garrison Access Hacks . | . . . . Unauthorized Hacks . | . . . . Terminals . | . . . . Fabricators . | . . . . Repair Stations . | . . . . Recycling Units . | . . . . Scanalyzers . | . . . . Garrison Access . | . . . . Data Cores Recovered . | . . . . Used . | . . . . Hacking Detections 1 | . 1 . . Full Trace Events . | . . . . Feedback Events . | . . . . Feedback Blocked . | . . . . Robot Schematics Acquired . | . . . . Robots Built . | . . . . Authchips . | . . . . Time . | . . . . Total Robot Build Rating . | . . . . Part Schematics Acquired . | . . . . Parts Built . | . . . . Authchips . | . . . . Time . | . . . . Total Part Build Rating . | . . . . Part Studies Acquired . | . . . . Parts Repaired . | . . . . Time . | . . . . Parts Recycled . | . . . . Recycled Matter . | . . . . Retrieved Matter . | . . . . Retrieved Components . | . . . . Parts Scanalyzed . | . . . . Part Schematics Acquired . | . . . . Parts Damaged . | . . . . Bothacking | -11 -10 -10 -7 ------------ Run | Yrd Mat Sub Rec Used RIF Installer . | . . . . Robots Hacked . | . . . . Non-combat . | . . . . Combat . | . . . . Robot Hacks Applied . | . . . . Relay Couplers Released . | . . . . Fabnet Peak Effective % . | . . . . Robots Rewired . | . . . . Allies Hacked . | . . . . Hacks Repelled . | . . . . Allies | -11 -10 -10 -7 -------- Run | Yrd Mat Sub Rec Total Allies . | . . . . Largest Group . | . . . . Highest-Rated Group . | . . . . Highest-Rated Ally . | . . . . Total Orders . | . . . . Ally Attacks . | . . . . Total Damage . | . . . . Kills . | . . . . Allies Corrupted . | . . . . Allies Melted . | . . . . Intel | -11 -10 -10 -7 ------- Run | Yrd Mat Sub Rec Active Infowar (turns) . | . . . . Robot Analysis Total . | . . . . Derelict Logs Recovered . | . . . . Drone Launches . | . . . . Drone Recoveries . | . . . . Exploration | -11 -10 -10 -7 ------------- Run | Yrd Mat Sub Rec Turns Passed 858 | 69 283 297 209 Spaces Moved 477 | 43 126 143 165 Core 12 | 12 . . . Treads 236 | 25 126 85 . Legs 6 | 6 . . . Wheels 223 | . . 58 165 Hover . | . . . . Flight . | . . . . Fastest Speed 50 | 50 160 105 90 Average Speed 134 | 124 160 151 101 Slowest Speed 240 | 160 160 240 110 Overloaded Moves . | . . . . Propulsion Burnouts . | . . . . Robots Hopped . | . . . . Potential Cave-ins . | . . . . Cave-ins Triggered . | . . . . Exploration Rate (%) 16 | 3 16 14 31 Regions Visited 3 Branch Regions 2 Pre-discovered Areas . | . . . . Known Exits Taken . | . . . . Unknown Exits Taken 3 | 1 1 1 . Scrap Searched . | . . . . Spaces Dug . | . . . . Terrain Destroyed . | . . . . Melee . | . . . . Projectile . | . . . . AOE . | . . . . Terrain Rammed . | . . . . Walls Destroyed . | . . . . Machines Disabled . | . . . . Actions | -11 -10 -10 -7 --------- Run | Yrd Mat Sub Rec Total 587 | 56 163 180 188 Wait 3 | . . . 3 Move 474 | 42 125 142 165 Hop . | . . . . Pick Up 17 | 6 8 2 1 Fast Attach 5 | 5 . . . Attach 9 | 2 2 4 1 Detach . | . . . . Swap 1 | . 1 . . Drop 2 | 1 1 . . Fire 74 | . 26 32 16 Melee . | . . . . Ram 2 | . . . 2 Kick . | . . . . Crush . | . . . . Escape Stasis . | . . . . Rewire . | . . . . Trap . | . . . . Miscellaneous . | . . . . Route ------- -11/Scrapyard -10/Materials -10/Subcaves -7/Recycling History --------- Turn | Location | Event 10 | -11/Scrapyard | Discovered new exit (range 15) 70 | -11/Scrapyard | Entered Materials 200 | -10/Materials | Core integrity fell below 50% 309 | -10/Materials | Build established: Mutant 329 | -10/Materials | Discovered new exit (range 7) 353 | -10/Materials | Entered Subcaves 602 | -10/Subcaves | Discovered new exit (range 10) 642 | -10/Subcaves | Core integrity fell below 20% 650 | -10/Subcaves | Entered Recycling 655 | -7/Recycling | Lost 3 parts (1p1n1w) 859 | -7/Recycling | Destroyed by P-60 Hacker with Shock Rifle Last Messages --------------- LOCATION=UNKNOWN GOAL=ESCAPE System corrupted: Matter fused (-6). System corrupted: Component data lost. ,/>OAJDZZ9SJMB6TL4NHEWK Atomic Centrifuge disabled. Slammed into U-05 Engineer. [Achievement: For Emergencies Only] Slammed into R-06 Scavenger. Lgt. Nuclear Core destroyed. Particle Gun destroyed. System corrupted by crushing effect (+1). System corrupted by crushing effect (+4). System corrupted: Component data lost. System corrupted: Heat flow error (+259). Acquired Minigun. I-36 Angel springs to life. P-60 Hacker springs to life. Sml. Laser destroyed. Com. Wheel destroyed. Map ----- +----------------------------------------------------+ | ????????#"" # ##"""#??????????##????????????? | | ????????# " # ##############????????????????? | | ????????# # # #????????????????? | | ????????# # # #????????????????? | | ????????# + # """ """ #????????????????? | | ????????# # # """ """ #????????????????? | | ???Y"######+### # """ "" #????????????????? | | # #????????????????? | | + """ """ #????????????????? | | # """ """ #????????????????? | | ?+#########+##### """ """ #????????????????? | | ?????????# ????# #????????????????? | | ?????????#"?????# #????????????????? | | ?????????#??????# #????????????????? | | ????????????????###" "####+###????????????????? | | ??????????????????#"Y"#??# #??????????????????? | | ??????????????????#"""#??# #???##?????????????? | | ??????????????????#####??# #### ##????????????? | | ?????????????????????????#%# #????????????? | | ?????????????????????????# # #????????????? | | ??????????????############ # #????????????? | | ??????????????+ r # #????????????? | | ??????????????????## # #????????????? | | ???????????????????# # #????????????? | | ???????????????????# """ + #????????????? | | ???????????????????# """@ # #????????????? | | ?????????? #####r """ # #????????????? | | ?????????? #######????????????? | | ???????????" #??????????????????? | | ???????????" #"Y"#######p#######?????????????? | | ???????????????"""??????# != #?????????????? | | ????????????????????????# #?????????????? | | ????????????????????????#g #?????????????? | | ????????????????????????#! #?????????????? | | ????????????????????????#[ * % #?????????????? | | ????????????????????????# ]/ #?????????????? | | ????????????????????????# a #?????????????? | | ????????????????????????# #?????????????? | | ????????????????????????# u #?????????????? | | ????????????????????????# = #?????????????? | | ????????????????????????# #?????????????? | | ????????????????????????#########?????????????? | | ??????????????????????????????????????????????? | | ??????????????????????????????????????????????? | | | | | | | | | | | | | +----------------------------------------------------+ Best States ------------- Heat Dissipation 35 Energy Generation 14 Energy Capacity 250 Matter Stores 300 Matter Capacity 300 Sight Range 16 Terrain Scan Density 10 Evasion (%) 50 Recoil Reduction 2 Item Schematics ----------------- None Robot Schematics ------------------ None Fabricated ------------ Nothing Repaired ---------- Nothing Studied --------- None Alien Tech Used ----------------- None Achievements -------------- DATA ERROR: Steam Global Achievement% For Emergencies Only There's More Where That Came From Challenges ------------ None Game ------ Seed BiometalDisassembledClaw Manual? 0 Play Time 00:12:51 Cumulative 19.7 hours Start 2025.11.17 @ 23:02:49 End 2025.11.17 @ 23:12:56 Sessions 1 Manual Loads 0 Difficulty Rogue Special Mode None Game No. 48 Rogue 45 Adventurer 3 Explorer 0 Win Type - Total 0 Types 0/0/0/0/0/0/0/0/0/0 Lore% 12 Gallery% 26 Achievement% 13 Wizard Run 0 Options --------- Layout 1 ASCII 0 Keyboard 0 Movement Mouse Keybinds 0 Fullscreen 1 Font 16/SmallcapsGlow Map View 50x40 Zoom Use 0% Tactical HUD 0 Map Filters NONE Filters NONE Steam SD RUN: c2586a28-f4b6-4a8e-915b-c9114c1a5433